[Event "44th Chess Olympiad Women 2022"]
[Site "Chennai"]
[Date "2022.08.05"]
[Round "7.10"]
[White "Pratyusha, Bodda"]
[Black "Heinatz, Gundula"]
[Result "1/2-1/2"]
[WhiteElo "2310"]
[BlackElo "2196"]
[Annotator "TA"]
[PlyCount "134"]
[EventDate "2022.??.??"]
[TimeControl "60"]

{[%evp 24,134,26,-5,0,0,47,31,39,31,50,10,37,36,49,22,60,20,18,-41,36,27,35,31,
114,0,0,0,-4,-25,-35,-81,-29,-32,-32,-32,-22,-29,-39,-23,-22,-30,-4,-3,-4,-19,
-17,-16,0,-17,18,0,0,0,25,0,0,0,0,0,0,0,0,0,0,0,0,0,0,0,0,0,0,0,0,0,0,0,0,0,0,
0,0,0,0,0,0,0,0,0,0,0,0,0,0,0,55,0,0,0,0,0,0,0,0,0,0,0,0,0,0,0,0]} 1. e4 {
[%emt 0:00:18]} c6 {[%emt 0:00:18]} 2. d4 {[%emt 0:00:08]} d5 {[%emt 0:00:05]}
3. Nc3 {[%emt 0:00:12]} dxe4 {[%emt 0:00:15]} 4. Nxe4 {[%emt 0:00:07]} Bf5 {
[%emt 0:00:04]} 5. Ng3 {[%emt 0:00:28]} Bg6 {[%emt 0:00:06]} 6. h4 {[%emt 0:00:
00]} h6 {[%emt 0:00:06]} 7. Nf3 {[%emt 0:00:05]} Nd7 {[%emt 0:00:39]} 8. h5 {
[%emt 0:00:09]} Bh7 {[%emt 0:00:04]} 9. Bd3 {[%emt 0:00:03]} Bxd3 {[%emt 0:00:
00]} 10. Qxd3 {[%emt 0:00:11]} e6 {[%emt 0:00:12]} 11. Bd2 {[%emt 0:00:22]}
Ngf6 {[%emt 0:00:35]} 12. O-O-O {[%emt 0:00:10]} Be7 {[%emt 0:04:42]} 13. Kb1 {
[%emt 0:00:51]} Qb6 {[%emt 0:01:53] B19: Classical Caro-Kann: 4...Bf5 main
line.} 14. Rhe1 {[%emt 0:01:45]} O-O-O {[%emt 0:08:12]} (14... O-O $11 {
feels stronger.}) 15. c4 $14 {[%emt 0:02:11][%cal Yc2c4,Yc4c5]} Bb4 {[%emt 0:
03:38] [#] White is slightly better.} 16. Qe2 $146 {[%emt 0:06:58]} ({
Predecessor:} 16. Qc2 Bxd2 17. Rxd2 Qc7 18. Red1 Rhe8 19. Re2 a6 20. Qc1 Kb8
21. a3 Ka8 22. Ka2 {0-1 (35) Tiarks,J (2178)-Bruedigam,M (2398) Germany 2019})
16... Bxd2 {[%emt 0:11:15]} 17. Rxd2 {[%emt 0:00:06]} Qa5 {[%emt 0:00:35]} 18.
c5 {[%emt 0:04:31]} Rhe8 {[%emt 0:05:37]} 19. Red1 {[%emt 0:02:03]} Qc7 {
[%emt 0:12:16]} 20. Qc4 {[%emt 0:02:24]} (20. Ne5 $5 {[%cal Re5f7]} Rf8 21. Nc4
$14) 20... Qf4 {[%emt 0:03:01][%cal Yf6h5]} 21. Qa4 {[%emt 0:01:37]} (21. Qc2
$11) 21... Nxc5 {[%emt 0:05:40]} (21... Ne4 $15 22. Nxe4 Qxe4+ 23. Ka1 Kb8) 22.
Qxa7 {[%emt 0:03:01]} Nce4 {[%emt 0:04:34]} 23. Nxe4 {[%emt 0:01:33]} Qxe4+ {
[%emt 0:03:09] [#]} ({Black should try} 23... Nxe4 $14 24. Rc2 Qb8) 24. Ka1 {
[%emt 0:00:22]} (24. Rc2 $1 $16) 24... Kc7 $1 $11 {[%emt 0:03:24] next ...Qd5
is good for Black.} 25. Qa5+ {[%emt 0:01:30]} Kb8 {[%emt 0:00:44]} 26. Qe5+ {
[%emt 0:08:43]} (26. Ne5 {is interesting.} Rd5 27. Qb4 Rc8 28. f3) 26... Qxe5 {
[%emt 0:02:07]} (26... Kc8 {looks sharper.} 27. Qa5 Qd5 28. Qb4 Qb5) 27. Nxe5 {
[%emt 0:01:46]} (27. dxe5 $15 {might be stronger.} Rxd2 28. Nxd2 Nxh5 29. Ne4)
27... Re7 {[%emt 0:03:16]} ({Reject} 27... Nxh5 $6 28. Nxf7 Rd5 29. Ne5 $11) (
27... Ne4 $17 28. Re2 f5) 28. g4 $1 {[%emt 0:00:35]} Nd5 {[%emt 0:01:27]} 29.
Kb1 {[%emt 0:00:40]} f6 {[%emt 0:00:32]} 30. Ng6 {[%emt 0:00:58]} Red7 {
[%emt 0:00:09]} 31. Kc1 {[%emt 0:02:52]} Kc7 {[%emt 0:07:04]} 32. a3 {[%emt 0:
00:00]} b5 {[%emt 0:01:08]} 33. Re1 {[%emt 0:02:30]} Rd6 {[%emt 0:03:17]} 34.
Rde2 {[%emt 0:02:10]} Kd7 {[%emt 0:04:12]} 35. Re4 {[%emt 0:04:10]} Ra8 {
[%emt 0:02:03]} 36. Kb1 {[%emt 0:03:22]} Rb8 {[%emt 0:02:34]} 37. f3 {[%emt 0:
00:00]} Ra8 {[%emt 0:01:42]} 38. f4 {[%emt 0:03:35]} Rg8 {[%emt 0:05:33]} 39.
f5 {[%emt 0:02:09]} exf5 {[%emt 0:01:02]} 40. gxf5 {[%emt 0:00:04]} Kd8 {
[%emt 0:02:18]} 41. Kc2 {[%emt 0:31:34]} Rd7 {[%emt 0:02:29]} 42. Re6 {[%emt 0:
00:00]} Kc7 {[%emt 0:02:31]} 43. Ne7 {[%emt 0:00:00]} Nxe7 {[%emt 0:00:22]} 44.
Rxe7 {[%emt 0:00:00] Endgame KRR-KRR} Rgd8 {[%emt 0:00:10]} 45. Kc3 {[%emt 0:
00:00]} Kb6 {[%emt 0:01:21]} 46. Rxd7 {[%emt 0:00:00]} Rxd7 {[%emt 0:00:00]
KR-KR} 47. Rg1 {[%emt 0:00:00]} Kc7 {[%emt 0:03:39]} 48. Rg4 {[%emt 0:00:00]}
Kb6 {[%emt 0:04:25]} 49. b3 {[%emt 0:00:00]} Ra7 {[%emt 0:03:12]} 50. Kb4 {
[%emt 0:00:00]} Rd7 {[%emt 0:00:29]} 51. a4 {[%emt 0:00:00]} bxa4 {[%emt 0:01:
12]} 52. bxa4 {[%emt 0:00:00] Threatens to win with a5+.} Rd5 {[%emt 0:00:14]
Inhibits a5+.} 53. Rxg7 {[%emt 0:00:00]} Rxd4+ {[%emt 0:00:16]} 54. Kb3 {
[%emt 0:00:00]} Rf4 {[%emt 0:00:46]} 55. Rg6 {[%emt 0:00:00]} Rxf5 {[%emt 0:00:
06]} 56. Rxh6 {[%emt 0:00:00]} Kc5 {[%emt 0:02:48]} 57. Rh8 {[%emt 0:00:00] [#]
Strongly threatening h6.} Rf3+ {[%emt 0:00:13]} 58. Kb2 {[%emt 0:00:12]} Rh3 {
[%emt 0:00:16]} 59. h6 {[%emt 0:00:23]} Kc4 {[%emt 0:00:00]} (59... Kb6 $11)
60. h7 {[%emt 0:00:32]} ({White should play} 60. a5 $1 $14 Rd3 61. Rc8) 60...
f5 {[%emt 0:00:31] The position is equal.} 61. a5 {[%emt 0:00:00]} Rb3+ {
[%emt 0:02:36]} 62. Kc2 {[%emt 0:04:04]} Rb7 {[%emt 0:00:08]} 63. a6 {[%emt 0:
00:26]} Ra7 {[%emt 0:00:22]} 64. Kd2 {[%emt 0:00:51]} Re7 {[%emt 0:00:00]} 65.
Rc8 {[%emt 0:05:39]} Rxh7 {[%emt 0:00:06]} 66. Rxc6+ {[%emt 0:00:00]} Kb5 {
[%emt 0:00:11]} 67. Rf6 {[%emt 0:00:04]} Ra7 {[%emt 0:00:08] Weighted Error
Value: White=0.15 (very precise) /Black=0.15 (very precise)} 1/2-1/2

[Event "44th Chess Olympiad Women 2022"]
[Site "Chennai"]
[Date "2022.08.05"]
[Round "7.10"]
[White "Stoeri, Laura"]
[Black "Vishwa Vasnawala"]
[Result "1/2-1/2"]
[WhiteElo "2084"]
[BlackElo "2305"]
[Annotator "TA"]
[PlyCount "172"]
[EventDate "2022.??.??"]
[TimeControl "60"]

{[%evp 17,172,23,22,11,22,0,0,-12,2,-14,0,0,0,0,8,11,9,6,8,0,-8,-28,-12,-11,0,
0,0,0,0,-100,-93,-89,-89,-84,-24,-106,-117,-99,-110,-135,-143,-170,-99,-83,0,
-164,0,-95,-2,-93,-96,-97,0,-2,-2,-2,-2,-4,63,77,88,25,451,0,219,219,219,219,
560,577,567,549,465,216,214,214,214,186,191,91,97,91,91,91,91,91,91,91,91,91,
91,91,91,91,576,544,476,243,315,315,456,0,91,91,91,91,231,0,91,0,117,91,91,91,
91,91,91,91,91,91,91,0,91,0,91,91,91,91,91,91,91,91,91,91,91,91,91,91,91,0,91,
91,91,91,91,91,91,0,91,91,91,91,91,0,0,0,91]} 1. e4 {[%emt 0:00:03]} e5 {
[%emt 0:00:07]} 2. Nf3 {[%emt 0:00:05]} Nc6 {[%emt 0:00:04]} 3. Bb5 {[%emt 0:
00:00]} a6 {[%emt 0:00:04]} 4. Ba4 {[%emt 0:00:06]} Nf6 {[%emt 0:00:04]} 5. d3
{[%emt 0:00:33]} b5 {[%emt 0:00:27]} 6. Bb3 {[%emt 0:00:00]} Bc5 {[%emt 0:00:
00]} 7. a4 {[%emt 0:03:41]} Rb8 {[%emt 0:04:26]} 8. O-O {[%emt 0:01:04]} d6 {
[%emt 0:00:47]} 9. axb5 {[%emt 0:10:32]} axb5 {[%emt 0:00:09]} 10. h3 {[%emt 0:
00:00] C78: Ruy Lopez: Archangelsk and Möller Defences.} O-O {[%emt 0:04:24]
was the old line (10...h6).} 11. Nc3 {[%emt 0:01:15]} h6 {[%emt 0:02:16]} 12.
Re1 {[%emt 0:15:05] [#]} Ne7 $146 {[%emt 0:01:55]} ({Predecessor:} 12... Be6
13. Nd5 Nd4 14. Nxd4 Bxd5 15. Nf5 Bxb3 16. cxb3 d5 17. Qf3 dxe4 18. dxe4 Kh7 {
0-1 (54) Vignesh,N (2268)-Hemanth,R (1812) Kolkata 2013}) 13. Qe2 {[%emt 0:00:
00]} Ng6 {[%emt 0:03:50]} 14. Be3 {[%emt 0:07:16]} Bxe3 {[%emt 0:02:27]} 15.
Qxe3 {[%emt 0:02:50]} b4 {[%emt 0:07:32]} 16. Ne2 {[%emt 0:05:35]} c5 {[%emt 0:
00:00]} 17. Nd2 {[%emt 0:00:43]} Nh5 {[%emt 0:07:54]} 18. Nc4 {[%emt 0:01:33]}
Nhf4 {[%emt 0:04:28]} 19. Qg3 {[%emt 0:12:29]} Kh8 {[%emt 0:11:41]} 20. Ra7 {
[%emt 0:01:41]} Qf6 {[%emt 0:06:06]} 21. Ne3 {[%emt 0:01:48]} Nh5 {[%emt 0:00:
00]} 22. Qh2 {[%emt 0:00:43]} Nh4 {[%emt 0:03:02]} 23. Ng4 {[%emt 0:11:16]} (
23. Kf1 $11) 23... Qg6 $17 {[%emt 0:02:23]} 24. Kh1 {[%emt 0:03:14]} f5 $1 {
[%emt 0:05:16]} 25. exf5 {[%emt 0:03:24]} Bxf5 {[%emt 0:05:54]} (25... Nxf5 $17
26. Bd5 Be6) 26. Ng3 {[%emt 0:02:29]} (26. Ne3 $11) 26... Bxg4 {[%emt 0:07:10]}
27. hxg4 {[%emt 0:00:04]} Qxg4 {[%emt 0:00:02]} 28. Nxh5 {[%emt 0:01:46]} Qxh5
{[%emt 0:00:02]} 29. Re4 {[%emt 0:01:21]} Qd1+ {[%emt 0:05:28]} (29... g5 $1
$19 30. f3 Rxf3 $1 31. gxf3 Qxf3+ 32. Kg1 Qd1+ 33. Kf2 Rf8+ 34. Rf7 Rxf7+ 35.
Bxf7 Qf3+ 36. Ke1 Qxf7) 30. Qg1 {[%emt 0:00:02]} Qh5 {[%emt 0:00:00]} (30...
Qxg1+ $1 $17 31. Kxg1 Nf5) 31. Qh2 $19 {[%emt 0:00:09]} Qd1+ {[%emt 0:00:02]} (
31... g5 $19 32. f3 Rxf3 $1 33. gxf3 Qxf3+ 34. Kg1 Qd1+ 35. Kf2 Rf8+ 36. Rf7
Rxf7+ 37. Bxf7 Qf3+ 38. Ke1 Qxf7 39. Rxh4 gxh4 40. Qxh4 Kg7) 32. Qg1 $17 {
[%emt 0:00:02]} Qxg1+ {[%emt 0:00:02]} 33. Kxg1 {[%emt 0:00:14]} Nf5 {[%emt 0:
01:22]} 34. Bd5 {[%emt 0:04:58]} Rf6 {[%emt 0:00:00]} (34... Nd4 $1 $17 35. Re7
Rbe8) 35. Rg4 {[%emt 0:00:51]} Rbf8 {[%emt 0:00:00]} 36. c3 {[%emt 0:00:42]}
bxc3 {[%emt 0:00:16]} 37. bxc3 {[%emt 0:00:02]} g5 {[%emt 0:02:37]} (37... Kh7
$11) 38. Rga4 $14 {[%emt 0:00:32] Black must now prevent Rb7. White has
compensation. White is more active.} Rg6 {[%emt 0:01:06]} 39. R4a6 {[%emt 0:01:
08]} (39. g4 $16 Nh4 40. Rd7) 39... Rg7 $2 {[%emt 0:00:37]} (39... g4 $11) 40.
g4 $2 {[%emt 0:00:44]} (40. Ra8 $1 $18 {[%cal Ra8f8]} Rxa8 41. Rxa8+ Kh7 42.
Be4) 40... Ne7 $2 {[%emt 0:00:29]} (40... Rxa7 $11 {and Black has nothing to
worry.} 41. Rxa7 Nh4) 41. Ra8 $1 $18 {[%emt 0:09:54]} Rxa8 {[%emt 0:12:41]} 42.
Rxa8+ {[%emt 0:00:05] Endgame KRB-KRN} Ng8 $2 {[%emt 0:02:12]} (42... Kh7 {
is more resistant.} 43. Be4+ Ng6) 43. Rd8 {[%emt 0:00:39]} Kh7 {[%emt 0:09:11]}
44. Be4+ {[%emt 0:00:00]} Kh8 {[%emt 0:00:01]} 45. Rxd6 {[%emt 0:00:18]} (45.
Kg2 $142) 45... Rc7 {[%emt 0:01:37]} 46. c4 {[%emt 0:02:08]} Kg7 {[%emt 0:00:
20]} 47. Re6 {[%emt 0:00:00]} Re7 {[%emt 0:02:00]} 48. Rc6 {[%emt 0:03:26]} (
48. Rg6+ $18 Kf7 49. f3) 48... Nf6 $16 {[%emt 0:00:01]} 49. f3 {[%emt 0:00:45]}
Nxe4 {[%emt 0:03:46]} 50. dxe4 {[%emt 0:00:05] KR-KR} ({Reject} 50. fxe4 $6 Rd7
$11) 50... Rd7 {[%emt 0:00:29]} 51. Rxc5 {[%emt 0:03:29]} Rd3 {[%emt 0:00:23]}
52. Kf2 {[%emt 0:03:20]} ({Of course not} 52. Rxe5 Rxf3 53. c5 Rc3 $11) 52...
Rc3 {[%emt 0:00:02]} 53. Rc6 {[%emt 0:00:22]} Rc2+ {[%emt 0:02:30]} 54. Ke3 {
[%emt 0:00:07] And now Kd3 would win.} Rc3+ {[%emt 0:00:01]} 55. Ke2 {[%emt 0:
00:00]} Rc2+ $2 {[%emt 0:00:01]} (55... Kf7 $16 56. Kf2 (56. Rxh6 Rxc4 57. Kd2
Ra4 $16) 56... Rc2+ 57. Ke3 Rc3+ 58. Ke2 Kg7) 56. Kd3 $18 {[%emt 0:00:39]} Rf2
{[%emt 0:00:02]} 57. Ke3 {[%emt 0:00:24]} (57. c5 $142) 57... Ra2 {[%emt 0:01:
13]} 58. Rd6 $1 {[%emt 0:02:10]} Rc2 {[%emt 0:00:38]} (58... Kf7 {might work
better.} 59. Rxh6 Ra3+ 60. Kf2 Rc3 61. Rh7+ Kg6) 59. Rc6 $2 {[%emt 0:00:56]} (
59. Kd3 $18 Rc1 60. Re6) 59... Ra2 {[%emt 0:00:01]} (59... Rc3+ $11 60. Ke2
Rc2+ 61. Kd3 Rf2) 60. Rc5 {[%emt 0:00:35]} Ra3+ {[%emt 0:00:00]} 61. Ke2 {
[%emt 0:00:21]} Ra2+ {[%emt 0:00:27]} (61... Ra4 $16 {is a better defense.} 62.
Rxe5 Rxc4) 62. Ke3 {[%emt 0:00:31]} (62. Kd1 $1 $18 {is the precise move to
win.}) 62... Ra3+ $16 {[%emt 0:00:02] [#]} 63. Kf2 {[%emt 0:00:06]} (63. Kd2 $1
$16) 63... Ra2+ {[%emt 0:00:03]} (63... Rc3 $1 $11 {remains equal.}) 64. Kg3 {
[%emt 0:00:03]} Kf6 {[%emt 0:02:52]} 65. Rc8 {[%emt 0:00:42]} Rc2 {[%emt 0:00:
04]} 66. c5 {[%emt 0:00:17]} Kf7 {[%emt 0:00:00]} 67. Rc6 {[%emt 0:00:38]} Kg7
{[%emt 0:00:07]} 68. Rc7+ {[%emt 0:00:46]} Kf6 {[%emt 0:00:19]} 69. Rc6+ {
[%emt 0:00:48]} Kg7 $1 {[%emt 0:00:01] [#]} 70. Rc8 {[%emt 0:00:05]} (70. Rd6
$1 $16) 70... Kf6 {[%emt 0:00:04]} (70... Kf7 $11) 71. c6 {[%emt 0:01:24]} Kf7
{[%emt 0:00:52]} 72. c7 {[%emt 0:00:33] Rh8 would kill now.} Kg7 {[%emt 0:00:
01] Against Rh8} 73. Re8 {[%emt 0:00:10]} Rxc7 {[%emt 0:00:02]} 74. Rxe5 {
[%emt 0:00:04]} Rc2 {[%emt 0:01:36]} 75. Rd5 {[%emt 0:00:58]} Re2 {[%emt 0:00:
49]} 76. Rd6 {[%emt 0:00:00]} Kh7 {[%emt 0:00:00]} 77. Rd3 {[%emt 0:00:06]} Kg6
{[%emt 0:00:10]} 78. Rd6+ {[%emt 0:00:53]} (78. Rd7 $16) 78... Kg7 {[%emt 0:00:
01]} (78... Kh7 $1 $11 {keeps the balance.}) 79. Rd1 {[%emt 0:01:25]} Kf6 {
[%emt 0:00:08]} 80. Rh1 {[%emt 0:00:17]} Kg6 {[%emt 0:00:15]} 81. Rf1 {[%emt 0:
00:26]} Kf6 {[%emt 0:00:27]} 82. Rh1 {[%emt 0:00:00]} Kg6 {[%emt 0:00:06]} 83.
Rh2 {[%emt 0:00:04]} Re3 {[%emt 0:00:19]} 84. Kf2 {[%emt 0:00:23]} Ra3 {
[%emt 0:00:01]} 85. Rh1 {[%emt 0:00:09]} ({White should try} 85. Rg2 $16) 85...
Ra2+ $1 $11 {[%emt 0:00:10]} 86. Kg3 {[%emt 0:00:00]} ({White should play} 86.
Kg1 $11) 86... Re2 {[%emt 0:02:08] White used his chance. Weighted Error Value:
White=0.39/Black=0.62} 1/2-1/2

[Event "44th Chess Olympiad Women 2022"]
[Site "Chennai"]
[Date "2022.08.05"]
[Round "7.11"]
[White "Borosova, Zuzana"]
[Black "Narva, Mai"]
[Result "1-0"]
[WhiteElo "2277"]
[BlackElo "2385"]
[Annotator "TA"]
[PlyCount "140"]
[EventDate "2022.??.??"]
[TimeControl "60"]

{[%evp 10,140,42,16,69,35,31,21,22,21,27,-61,3,-4,111,97,108,83,105,107,103,41,
39,0,5,-12,-12,-14,0,-89,0,0,47,24,41,-29,-38,-19,-2,-101,-93,-143,-130,-160,
-152,-206,-158,-189,-55,-58,-62,-158,-28,-30,-26,-29,-2,0,0,-3,0,-43,0,0,0,0,0,
-52,0,0,185,208,555,443,1168,1906,1218,1039,12841,12839,12839,12833,12837,
12833,12837,12838,12837,12838,12839,12839,12837,12833,12833,12833,12835,12835,
12838,12839,12842,12838,12841,12841,12842,12842,12843,12843,12843,12843,12846,
12847,12847,12846,12846,12847,12847,12845,12845,12844,12845,12844,12849,12845,
12846,12846,12847,12847,12848,12847,12850,12848,12849,12848,12849]} 1. e4 {
[%emt 0:00:03]} c5 {[%emt 0:00:17]} 2. Nf3 {[%emt 0:00:05]} e6 {[%emt 0:00:13]}
3. d4 {[%emt 0:00:07]} cxd4 {[%emt 0:00:09]} 4. Nxd4 {[%emt 0:00:05]} Nc6 {
[%emt 0:00:17]} 5. Nc3 {[%emt 0:00:34]} Bc5 {[%emt 0:00:29]} 6. Nb3 {[%emt 0:
00:00]} (6. Ndb5 {with more complications.} Nf6 7. Nd6+ Ke7 8. Bf4) 6... Bb6 {
[%emt 0:00:21] B45: Sicilian Four Knights.} (6... Bb4 $11) 7. Qe2 {[%emt 0:00:
00]} Nge7 {[%emt 0:30:58]} 8. Be3 {[%emt 0:08:14]} O-O {[%emt 0:02:25] The
position is equal.} 9. O-O-O {[%emt 0:04:32]} d5 {[%emt 0:03:04] [#]} 10. Nb5
$146 {[%emt 0:28:25] Against d4} (10. f4 $11) ({Predecessor:} 10. exd5 exd5 11.
Kb1 Be6 12. Na4 Bxe3 13. Qxe3 Re8 14. Nac5 Qc8 15. Bd3 b6 16. Nxe6 fxe6 {
1-0 (55) Sztokbant,B (2194)-Laylo,D (2434) Chess.com INT 2020}) 10... Bd7 {
[%emt 0:10:12]} (10... a6 $15 11. N5d4 Nxd4 12. Bxd4 Bxd4 13. Nxd4 e5) 11. Kb1
$11 {[%emt 0:05:03]} a5 {[%emt 0:24:34]} (11... Bxe3 $11 12. Qxe3 Na5) 12. Nc5
$16 {[%emt 0:06:05]} Bc8 {[%emt 0:08:34]} 13. Na4 {[%emt 0:09:59] White is
much more active. The black rooks are badly placed.} Bxe3 {[%emt 0:03:56]} 14.
Qxe3 {[%emt 0:00:04]} d4 {[%emt 0:00:32]} 15. Qd2 {[%emt 0:01:39]} ({Not} 15.
Nxd4 e5 16. c3 Re8 $17) (15. Qg3 $16) 15... e5 $14 {[%emt 0:00:51]} 16. Bc4 {
[%emt 0:05:31]} Na7 {[%emt 0:03:52]} 17. c3 {[%emt 0:02:26]} Bd7 {[%emt 0:00:
00]} 18. Qe2 {[%emt 0:00:05]} Ng6 {[%emt 0:02:24][%cal Ye7g6,Yg6e5,Ye5d3]} 19.
cxd4 {[%emt 0:04:09]} (19. g3 $1 $11) 19... Bxb5 {[%emt 0:00:49]} (19... exd4
$17 20. f3 h6) 20. Bxb5 $11 {[%emt 0:00:06]} exd4 {[%emt 0:00:12]} (20... Nf4
$11 {deserves consideration.} 21. Qf1 exd4) 21. g3 $1 $14 {[%emt 0:00:00]} Qd6
$1 {[%emt 0:01:36]} 22. b3 {[%emt 0:03:45]} (22. a3 $14) 22... Qb4 $11 {
[%emt 0:01:18]} 23. Bd3 {[%emt 0:00:08]} Ne5 {[%emt 0:01:07]} 24. Qe1 {[%emt 0:
01:32]} (24. Rc1 $11 {keeps the balance.}) 24... Qd6 $1 $17 {[%emt 0:00:00]}
25. f4 {[%emt 0:00:44]} (25. Qe2 $142) 25... Nxd3 {[%emt 0:00:33]} 26. Rxd3 {
[%emt 0:00:01]} b5 {[%emt 0:00:32]} 27. Nc3 {[%emt 0:00:25]} (27. Nb2 $17 {
was necessary.}) 27... a4 $1 $19 {[%emt 0:00:20]} 28. Nd5 {[%emt 0:00:13]} axb3
{[%emt 0:00:40]} (28... Nc6 $19 {Threatens to win with ...Rfe8.} 29. f5 Ne5 30.
Rxd4 axb3) 29. Rxb3 {[%emt 0:00:36]} Nc6 {[%emt 0:00:15] Prevents Qb4. White
must now prevent ...Rfe8.} 30. f5 {[%emt 0:00:35]} (30. Qe2 $1 $15) 30... Ra3 {
[%emt 0:00:44]} (30... Ra4 $17 {Hoping for ...Rfa8.} 31. Rxb5 Rxa2 32. Kxa2
Ra8+ 33. Kb1 Qa3 34. Ne7+ Nxe7) 31. Rxa3 $11 {[%emt 0:00:40]} Qxa3 {[%emt 0:00:
06]} 32. Qc1 $1 {[%emt 0:00:11]} Qf3 {[%emt 0:00:52]} 33. Re1 {[%emt 0:00:25]}
Ne5 {[%emt 0:00:28] aiming for ...Nd3.} 34. f6 $132 {[%emt 0:00:00] White is
not keeping still} gxf6 {[%emt 0:00:38]} 35. Qf4 {[%emt 0:00:59]} (35. Qh6 $5 {
[%cal Rd5e7]} Nd7 36. Qd2 $11 (36. Ne7+ $2 Kh8 $17)) 35... Qd3+ {[%emt 0:00:29]
} 36. Ka1 {[%emt 0:00:11]} Ng6 {[%emt 0:00:25]} (36... Nf3 $2 37. Qh6 $1 Qc3+
38. Nxc3 $18) 37. Qxf6 {[%emt 0:01:11]} Rc8 {[%emt 0:00:36]} 38. Qg5 {[%emt 0:
00:15] Against Qd2} ({White should play} 38. Rf1 $11 Rf8 39. Qf3) 38... Ra8 {
[%emt 0:00:30]} (38... Rc2 $15 39. Rc1 (39. Qd8+ $2 Kg7 $19) 39... Rxc1+ 40.
Qxc1 Kg7) 39. Rc1 {[%emt 0:01:03]} Qe2 $2 {[%emt 0:00:29] [#]} (39... Qa3 $11
40. Rc2 d3) 40. Nf6+ $1 $18 {[%emt 0:00:30]} ({Inferior is} 40. Nb4 d3 41. Qd5
Ra3 42. Qxb5 h5 $17) 40... Kh8 $2 {[%emt 0:00:00]} (40... Kf8 {is more
resistant.} 41. Qd5 Ra6) 41. Qd5 $1 {[%emt 0:01:01][%csl Ya8,Yd4,Yf7] White is
clearly winning.} Ra7 {[%emt 0:08:23]} (41... Rf8 $142 42. Qxd4 Qf3 43. Nd7+
Kg8 44. Nxf8 Nxf8) 42. Nh5 {[%emt 0:04:22] Intending Rc8+ and mate.} Rxa2+ {
[%emt 0:02:12]} 43. Qxa2 {[%emt 0:00:05]} Qxh5 {[%emt 0:00:11]} 44. Qxf7 {
[%emt 0:00:09] Endgame Threatening mate with Rc8+. KQR-KQN} Qg4 {[%emt 0:00:17]
Inhibits Rc8+.} 45. Qf6+ {[%emt 0:00:00]} Kg8 {[%emt 0:00:07]} 46. Qxd4 {
[%emt 0:00:15]} Nf8 {[%emt 0:01:05]} 47. Rf1 {[%emt 0:03:23] White threatens
Qd5+ and mate.} Ne6 {[%emt 0:01:26]} 48. Qd5 {[%emt 0:06:36] White wants to
mate with Rf6.} Qg7+ {[%emt 0:01:49]} 49. e5 {[%emt 0:00:44]} Qe7 {[%emt 0:00:
25]} 50. Qd6 {[%emt 0:02:22]} Qe8 {[%emt 0:00:00]} 51. Kb2 {[%emt 0:01:26]} Kg7
{[%emt 0:00:35]} 52. Rf6 {[%emt 0:00:52]} Ng5 {[%emt 0:00:31]} 53. Qc7+ {
[%emt 0:02:15]} Nf7 {[%emt 0:00:31]} 54. Rb6 {[%emt 0:00:50]} Qxe5+ {[%emt 0:
02:05]} 55. Qxe5+ {[%emt 0:00:12]} Nxe5 {[%emt 0:00:05]} 56. Rxb5 {[%emt 0:00:
16] KR-KN} Nf3 {[%emt 0:00:51]} 57. h4 {[%emt 0:02:04]} Nd2 {[%emt 0:00:59]}
58. Kc2 {[%emt 0:01:11]} Nf1 {[%emt 0:00:00]} 59. Rb3 {[%emt 0:00:26]} Kg6 {
[%emt 0:00:29]} 60. Kd1 {[%emt 0:00:13]} Kh5 {[%emt 0:00:26]} 61. Ke2 {[%emt 0:
00:29]} Nh2 {[%emt 0:00:19]} 62. Kf2 {[%emt 0:00:22]} Ng4+ {[%emt 0:00:40]} 63.
Kg2 {[%emt 0:00:27]} Kg6 {[%emt 0:00:00]} 64. Rb6+ {[%emt 0:00:29]} Kh5 {
[%emt 0:00:32]} 65. Rb5+ {[%emt 0:00:15]} Kh6 {[%emt 0:00:05]} 66. Kf3 {
[%emt 0:00:12]} Nf6 {[%emt 0:00:13]} 67. g4 {[%emt 0:00:14]} Kg6 {[%emt 0:00:
13]} 68. Ra5 {[%emt 0:00:10]} h6 {[%emt 0:00:00]} 69. Kf4 {[%emt 0:00:38]} Kg7
{[%emt 0:00:25]} 70. Ra7+ {[%emt 0:00:05]} Kg8 {[%emt 0:00:18] Quite a
comeback for White. Weighted Error Value: White=0.27 (precise) /Black=0.44} 1-0